[Event "*** Titled Tuesday 3|2 Blitz"]
[Site "Chess.com"]
[Date "2017.06.06"]
[Round "4"]
[White "Gordima"]
[Black "ArnaudovP"]
[Result "1/2-1/2"]
[WhiteElo "2531"]
[BlackElo "2419"]
[TimeControl "180+2"]
[EndTime "14:42:11 PDT"]
[Termination "Game drawn by repetition"]

1. Nf3 {[%clk 0:03:02]} 1... Nf6 {[%clk 0:03:00.7]} 2. c4 {[%clk 0:03:03.1]}
2... e6 {[%clk 0:02:59.5]} 3. g3 {[%clk 0:03:02]} 3... d5 {[%clk 0:03:00.1]} 4.
b3 {[%clk 0:03:03.2]} 4... d4 {[%clk 0:02:58.1]} 5. Bg2 {[%clk 0:03:04.2]} 5...
c5 {[%clk 0:02:59.1]} 6. e3 {[%clk 0:03:04.1]} 6... Nc6 {[%clk 0:03:00.1]} 7.
O-O {[%clk 0:03:03.9]} 7... Bd6 {[%clk 0:02:45.7]} 8. a3 {[%clk 0:03:02.9]} 8...
a5 {[%clk 0:02:42]} 9. exd4 {[%clk 0:02:58.8]} 9... cxd4 {[%clk 0:02:42.4]} 10.
d3 {[%clk 0:02:59.9]} 10... h6 {[%clk 0:02:41.6]} 11. Nbd2 {[%clk 0:02:57.4]}
11... O-O {[%clk 0:02:39.9]} 12. Ne1 {[%clk 0:02:58.8]} 12... e5 {[%clk
0:02:38.4]} 13. Nc2 {[%clk 0:02:57.8]} 13... Bf5 {[%clk 0:02:36.9]} 14. Qe2
{[%clk 0:02:58.3]} 14... Qd7 {[%clk 0:02:36.6]} 15. Rb1 {[%clk 0:02:57.6]} 15...
Rfe8 {[%clk 0:02:33.6]} 16. Re1 {[%clk 0:02:44.5]} 16... Bc7 {[%clk 0:02:30.2]}
17. f3 {[%clk 0:02:27.6]} 17... Nd8 {[%clk 0:02:01.2]} 18. b4 {[%clk 0:02:16.4]}
18... axb4 {[%clk 0:02:01.7]} 19. axb4 {[%clk 0:02:18.3]} 19... Ra2 {[%clk
0:02:01.4]} 20. Rb2 {[%clk 0:02:19.5]} 20... Rxb2 {[%clk 0:02:01.5]} 21. Bxb2
{[%clk 0:02:21.4]} 21... Qa4 {[%clk 0:02:01.4]} 22. Ne4 {[%clk 0:02:17.4]} 22...
Nxe4 {[%clk 0:01:57.7]} 23. fxe4 {[%clk 0:02:11.7]} 23... Be6 {[%clk 0:01:57.9]}
24. b5 {[%clk 0:01:46.2]} 24... Bd6 {[%clk 0:01:57.9]} 25. Ra1 {[%clk
0:01:44.8]} 25... Qb3 {[%clk 0:01:57.7]} 26. Ba3 {[%clk 0:01:45.8]} 26... Bxc4
{[%clk 0:01:49]} 27. dxc4 {[%clk 0:01:39.7]} 27... d3 {[%clk 0:01:49.3]} 28. Qe3
{[%clk 0:01:22.3]} 28... Qxc2 {[%clk 0:01:46.3]} 29. Bxd6 {[%clk 0:01:22]} 29...
Qxc4 {[%clk 0:01:35.9]} 30. Rd1 {[%clk 0:01:16]} 30... Qxb5 {[%clk 0:01:34.5]}
31. Qxd3 {[%clk 0:01:15.9]} 31... Qb6+ {[%clk 0:01:30.8]} 32. Kh1 {[%clk
0:01:15.4]} 32... Nc6 {[%clk 0:01:30.5]} 33. Rb1 {[%clk 0:01:12.3]} 33... Qf2
{[%clk 0:01:27.6]} 34. Qf1 {[%clk 0:01:03.8]} 34... Qa7 {[%clk 0:01:20]} 35. Qb5
{[%clk 0:00:55.6]} 35... Rd8 {[%clk 0:01:19.8]} 36. Bc5 {[%clk 0:00:55.2]} 36...
Qa2 {[%clk 0:01:18.8]} 37. Qxb7 {[%clk 0:00:21.2]} 37... Rb8 {[%clk 0:01:18.4]}
38. Qxb8+ {[%clk 0:00:22.1]} 38... Nxb8 {[%clk 0:01:19.1]} 39. Rxb8+ {[%clk
0:00:24]} 39... Kh7 {[%clk 0:01:19.9]} 40. Bg1 {[%clk 0:00:25.4]} 40... Qe2
{[%clk 0:01:18.9]} 41. Rb1 {[%clk 0:00:25.6]} 41... f6 {[%clk 0:01:18.8]} 42.
Rf1 {[%clk 0:00:26.8]} 42... h5 {[%clk 0:01:17.9]} 43. h4 {[%clk 0:00:26.4]}
43... Kh6 {[%clk 0:01:16.5]} 44. Bf2 {[%clk 0:00:27.1]} 44... Kh7 {[%clk
0:01:16]} 45. Kg1 {[%clk 0:00:27.8]} 45... Qc2 {[%clk 0:01:15.3]} 46. Re1 {[%clk
0:00:28.1]} 46... Qd2 {[%clk 0:01:15]} 47. Bh3 {[%clk 0:00:29.1]} 47... g6
{[%clk 0:01:09.9]} 48. Bg2 {[%clk 0:00:25.6]} 48... Kg7 {[%clk 0:01:08.4]} 49.
Rb1 {[%clk 0:00:26]} 49... g5 {[%clk 0:01:08.7]} 50. hxg5 {[%clk 0:00:21.2]}
50... fxg5 {[%clk 0:01:09.4]} 51. Rb7+ {[%clk 0:00:21.6]} 51... Kg6 {[%clk
0:01:09.7]} 52. Rb6+ {[%clk 0:00:22.9]} 52... Kg7 {[%clk 0:01:10.1]} 53. Rb1
{[%clk 0:00:24.3]} 53... g4 {[%clk 0:01:08.4]} 54. Re1 {[%clk 0:00:23.4]} 54...
Kg6 {[%clk 0:01:08.1]} 55. Rf1 {[%clk 0:00:21]} 55... Qd3 {[%clk 0:01:04.3]} 56.
Re1 {[%clk 0:00:20.1]} 56... Qd2 {[%clk 0:01:04.6]} 57. Bf1 {[%clk 0:00:21.4]}
57... Qc3 {[%clk 0:01:03]} 58. Bb5 {[%clk 0:00:20.2]} 58... Qb2 {[%clk
0:01:01.7]} 59. Bd7 {[%clk 0:00:20.2]} 59... Qd2 {[%clk 0:00:58.2]} 60. Bf5+
{[%clk 0:00:21.3]} 60... Kg7 {[%clk 0:00:58.4]} 61. Kg2 {[%clk 0:00:16]} 61...
Kf6 {[%clk 0:00:56]} 62. Rb1 {[%clk 0:00:16.6]} 62... Qe2 {[%clk 0:00:54.4]} 63.
Rb6+ {[%clk 0:00:17.1]} 63... Kg7 {[%clk 0:00:55]} 64. Rd6 {[%clk 0:00:17.8]}
64... Qf3+ {[%clk 0:00:54.4]} 65. Kg1 {[%clk 0:00:18.9]} 65... Qe2 {[%clk
0:00:52.6]} 66. Rd5 {[%clk 0:00:18]} 66... Qb2 {[%clk 0:00:50.3]} 67. Rd7+
{[%clk 0:00:16.8]} 67... Kf6 {[%clk 0:00:49.3]} 68. Rd6+ {[%clk 0:00:13.4]}
68... Kg7 {[%clk 0:00:48.4]} 69. Rd1 {[%clk 0:00:14.7]} 69... Qe2 {[%clk
0:00:47.7]} 70. Re1 {[%clk 0:00:14.7]} 70... Qd2 {[%clk 0:00:47.1]} 71. Re3
{[%clk 0:00:15.2]} 71... Qd1+ {[%clk 0:00:46.1]} 72. Kg2 {[%clk 0:00:16.6]}
72... Qd2 {[%clk 0:00:46.8]} 73. Ra3 {[%clk 0:00:15.9]} 73... Qd1 {[%clk
0:00:47.3]} 74. Ra7+ {[%clk 0:00:15.2]} 74... Kf6 {[%clk 0:00:47.6]} 75. Rd7
{[%clk 0:00:15.7]} 75... Qf3+ {[%clk 0:00:46.8]} 76. Kf1 {[%clk 0:00:16.4]}
76... Qh1+ {[%clk 0:00:46]} 77. Ke2 {[%clk 0:00:16.9]} 77... Qf3+ {[%clk
0:00:46.4]} 78. Ke1 {[%clk 0:00:18.1]} 78... Qh1+ {[%clk 0:00:46.5]} 79. Kd2
{[%clk 0:00:18.2]} 79... Qg2 {[%clk 0:00:46.6]} 80. Ke1 {[%clk 0:00:18.4]} 80...
Qh1+ {[%clk 0:00:46.9]} 81. Ke2 {[%clk 0:00:19.4]} 81... Qf3+ {[%clk 0:00:46.5]}
82. Kf1 {[%clk 0:00:19.5]} 82... Qh1+ {[%clk 0:00:45.9]} 83. Ke2 {[%clk
0:00:11.9]} 83... Qf3+ {[%clk 0:00:45.3]} 1/2-1/2

[Event "*** Titled Tuesday 3|2 Blitz"]
[Site "Chess.com"]
[Date "2017.06.06"]
[Round "4"]
[White "Ivan11Martic"]
[Black "tigra"]
[Result "0-1"]
[WhiteElo "2399"]
[BlackElo "2617"]
[TimeControl "180+2"]
[EndTime "14:43:26 PDT"]
[Termination "tigra won by resignation"]

1. e4 {[%clk 0:03:02]} 1... e6 {[%clk 0:02:27.1]} 2. d4 {[%clk 0:03:01.9]} 2...
d5 {[%clk 0:02:28.8]} 3. Nc3 {[%clk 0:03:02.6]} 3... Bb4 {[%clk 0:02:27.7]} 4.
e5 {[%clk 0:03:03.2]} 4... Ne7 {[%clk 0:02:28.2]} 5. a3 {[%clk 0:02:56.9]} 5...
Bxc3+ {[%clk 0:02:28.7]} 6. bxc3 {[%clk 0:02:58.8]} 6... c5 {[%clk 0:02:30.4]}
7. Qg4 {[%clk 0:02:57.7]} 7... O-O {[%clk 0:02:30.5]} 8. Bd3 {[%clk 0:02:55.7]}
8... f5 {[%clk 0:02:31.2]} 9. exf6 {[%clk 0:02:55.4]} 9... Rxf6 {[%clk
0:02:31.6]} 10. Qh5 {[%clk 0:02:54.4]} 10... h6 {[%clk 0:02:30.6]} 11. Nf3
{[%clk 0:02:32.7]} 11... Nbc6 {[%clk 0:02:28.6]} 12. a4 {[%clk 0:02:05.5]} 12...
Bd7 {[%clk 0:02:27.9]} 13. O-O {[%clk 0:02:00.7]} 13... c4 {[%clk 0:02:24.3]}
14. Be2 {[%clk 0:01:59.9]} 14... Be8 {[%clk 0:02:25.1]} 15. Qh3 {[%clk 0:01:52]}
15... Bg6 {[%clk 0:02:25.1]} 16. Ra2 {[%clk 0:01:37.6]} 16... Nf5 {[%clk
0:02:16.5]} 17. Ne5 {[%clk 0:01:34.6]} 17... Nd6 {[%clk 0:02:09.2]} 18. Ba3
{[%clk 0:01:19.4]} 18... Ne4 {[%clk 0:01:51.8]} 19. Ng4 {[%clk 0:01:08.9]} 19...
Rf5 {[%clk 0:01:34.5]} 20. f4 {[%clk 0:00:55.5]} 20... Qa5 {[%clk 0:01:28.1]}
21. Rf3 {[%clk 0:00:41.7]} 21... Qxa4 {[%clk 0:01:08.7]} 22. Nxh6+ {[%clk
0:00:39.8]} 22... gxh6 {[%clk 0:01:09.7]} 23. Qxh6 {[%clk 0:00:41.7]} 23... Kf7
{[%clk 0:01:08.8]} 24. g4 {[%clk 0:00:36.9]} 24... Rf6 {[%clk 0:01:02.8]} 25. f5
{[%clk 0:00:33.4]} 25... exf5 {[%clk 0:01:03.4]} 26. gxf5 {[%clk 0:00:34]} 26...
Rg8 {[%clk 0:01:03.2]} 27. Kf1 {[%clk 0:00:21.9]} 27... Bxf5 {[%clk 0:00:28.3]}
28. Qh5+ {[%clk 0:00:22.8]} 28... Ke6 {[%clk 0:00:26.6]} 29. Bf8 {[%clk
0:00:20.6]} 29... Nd2+ {[%clk 0:00:22.8]} 30. Kf2 {[%clk 0:00:19.4]} 30... Ne4+
{[%clk 0:00:17.4]} 31. Kf1 {[%clk 0:00:19.3]} 31... Rgxf8 {[%clk 0:00:11.1]} 32.
Rxa4 {[%clk 0:00:18.9]} 32... Nd2+ {[%clk 0:00:12.5]} 33. Ke1 {[%clk 0:00:19.2]}
33... Nxf3+ {[%clk 0:00:13.9]} 34. Bxf3 {[%clk 0:00:21.1]} 34... a6 {[%clk
0:00:13.8]} 35. Kd2 {[%clk 0:00:20.5]} 35... Kd6 {[%clk 0:00:14]} 36. Ra1 {[%clk
0:00:19.8]} 36... Be6 {[%clk 0:00:13.8]} 37. Be2 {[%clk 0:00:19.5]} 37... Rf2
{[%clk 0:00:13.8]} 38. Qh4 {[%clk 0:00:18.8]} 38... Rg2 {[%clk 0:00:12.5]} 39.
Re1 {[%clk 0:00:18.2]} 39... Rff2 {[%clk 0:00:12.8]} 40. Kd1 {[%clk 0:00:18.9]}
40... Rxe2 {[%clk 0:00:10.9]} 41. Rxe2 {[%clk 0:00:19.2]} 41... Bg4 {[%clk
0:00:11.9]} 42. Qh6+ {[%clk 0:00:20.1]} 42... Kc7 {[%clk 0:00:12.2]} 43. Qg7+
{[%clk 0:00:19.9]} 43... Kb6 {[%clk 0:00:12.6]} 44. Kc1 {[%clk 0:00:19.7]} 44...
Rxe2 {[%clk 0:00:13.2]} 45. Qxg4 {[%clk 0:00:20.4]} 45... Rxh2 {[%clk
0:00:14.7]} 46. Qf3 {[%clk 0:00:21.1]} 46... Ne7 {[%clk 0:00:13.8]} 47. Qf6+
{[%clk 0:00:21.9]} 47... Nc6 {[%clk 0:00:14.3]} 48. Qd6 {[%clk 0:00:22.5]} 48...
Rh5 {[%clk 0:00:14.2]} 49. Qc5+ {[%clk 0:00:21.9]} 49... Kc7 {[%clk 0:00:15]}
50. Qf8 {[%clk 0:00:23.8]} 50... Rh7 {[%clk 0:00:14.5]} 51. Qg8 {[%clk
0:00:24.2]} 51... Rd7 {[%clk 0:00:14.8]} 52. Qg3+ {[%clk 0:00:23.9]} 52... Kb6
{[%clk 0:00:14.6]} 53. Qg4 {[%clk 0:00:25.8]} 53... Rd6 {[%clk 0:00:14.9]} 54.
Qf4 {[%clk 0:00:26.3]} 54... Rd8 {[%clk 0:00:16.8]} 55. Kb2 {[%clk 0:00:26.9]}
55... a5 {[%clk 0:00:18]} 56. Qf6 {[%clk 0:00:27.6]} 56... Rd7 {[%clk
0:00:18.9]} 57. Qf8 {[%clk 0:00:27.9]} 57... Kc7 {[%clk 0:00:19.8]} 58. Qf4+
{[%clk 0:00:27.8]} 58... Kc8 {[%clk 0:00:20.7]} 59. Qf8+ {[%clk 0:00:28.6]}
59... Rd8 {[%clk 0:00:21.4]} 60. Qc5 {[%clk 0:00:28.1]} 60... Kc7 {[%clk
0:00:22]} 61. Qa3 {[%clk 0:00:27.9]} 61... Rd6 {[%clk 0:00:21.2]} 62. Qa1 {[%clk
0:00:27.8]} 62... b5 {[%clk 0:00:21.8]} 63. Qg1 {[%clk 0:00:27]} 63... Kb6
{[%clk 0:00:22.8]} 64. Qg8 {[%clk 0:00:27.1]} 64... Rd8 {[%clk 0:00:23.5]} 65.
Qg7 {[%clk 0:00:27.6]} 65... b4 {[%clk 0:00:23]} 66. Qf6 {[%clk 0:00:28.4]}
66... Kb5 {[%clk 0:00:21.5]} 67. Qe6 {[%clk 0:00:27.6]} 67... bxc3+ {[%clk
0:00:20.8]} 68. Kxc3 {[%clk 0:00:28]} 68... a4 {[%clk 0:00:22.3]} 69. Qe1 {[%clk
0:00:27.6]} 69... Kb6 {[%clk 0:00:20.3]} 70. Qb1+ {[%clk 0:00:28]} 70... Ka6
{[%clk 0:00:20.4]} 71. Qa1 {[%clk 0:00:26.2]} 71... Kb5 {[%clk 0:00:19.9]} 72.
Qb2+ {[%clk 0:00:25.7]} 72... Ka6 {[%clk 0:00:20.8]} 73. Qa3 {[%clk 0:00:27.1]}
73... Kb6 {[%clk 0:00:21.1]} 74. Qc5+ {[%clk 0:00:27.7]} 74... Kc7 {[%clk
0:00:21.6]} 75. Qb5 {[%clk 0:00:26.8]} 75... Ra8 {[%clk 0:00:10.4]} 76. Qxd5
{[%clk 0:00:23.3]} 76... a3 {[%clk 0:00:11.3]} 77. Qxc4 {[%clk 0:00:24.4]} 77...
a2 {[%clk 0:00:11.7]} 78. Qf7+ {[%clk 0:00:25.4]} 78... Kd6 {[%clk 0:00:12]} 79.
Qf6+ {[%clk 0:00:25.4]} 79... Kd7 {[%clk 0:00:13]} 80. Qf5+ {[%clk 0:00:24.8]}
80... Ke7 {[%clk 0:00:12.7]} 81. Qe4+ {[%clk 0:00:25.1]} 81... Kd8 {[%clk
0:00:11.3]} 82. Qd5+ {[%clk 0:00:21.3]} 82... Kc7 {[%clk 0:00:12.2]} 83. Qf7+
{[%clk 0:00:21.8]} 83... Kc8 {[%clk 0:00:11.8]} 84. Qe6+ {[%clk 0:00:21.2]}
84... Kb7 {[%clk 0:00:11.7]} 85. Qb3+ {[%clk 0:00:21.1]} 85... Kc7 {[%clk
0:00:10.8]} 86. Qf7+ {[%clk 0:00:21.8]} 86... Kd6 {[%clk 0:00:11.4]} 87. Qf6+
{[%clk 0:00:22]} 87... Kd7 {[%clk 0:00:12.4]} 88. Qf5+ {[%clk 0:00:22.2]} 88...
Ke8 {[%clk 0:00:12.2]} 89. Qe6+ {[%clk 0:00:20.3]} 89... Ne7 {[%clk 0:00:12.4]}
90. Kd2 {[%clk 0:00:16.4]} 90... a1=Q {[%clk 0:00:12.1]} 91. Qe5 {[%clk
0:00:15.9]} 91... Qa5+ {[%clk 0:00:12.5]} 0-1

[Event "*** Titled Tuesday 3|2 Blitz"]
[Site "Chess.com"]
[Date "2017.06.06"]
[Round "5"]
[White "ChessQueen"]
[Black "angieflynn"]
[Result "1-0"]
[WhiteElo "2508"]
[BlackElo "1782"]
[TimeControl "180+2"]
[EndTime "14:48:16 PDT"]
[Termination "ChessQueen won by resignation"]

1. e4 {[%clk 0:03:02]} 1... e6 {[%clk 0:02:58.5]} 2. d4 {[%clk 0:03:01.9]} 2...
d5 {[%clk 0:02:52.2]} 3. Nd2 {[%clk 0:03:01.2]} 3... Nf6 {[%clk 0:02:51.3]} 4.
e5 {[%clk 0:03:02]} 4... Ne4 {[%clk 0:02:52.1]} 5. Nxe4 {[%clk 0:03:01.1]} 5...
dxe4 {[%clk 0:02:53]} 6. Ne2 {[%clk 0:02:59.2]} 6... b6 {[%clk 0:02:49.7]} 7.
Ng3 {[%clk 0:02:57.7]} 7... Bb7 {[%clk 0:02:50.5]} 8. Be2 {[%clk 0:02:55.7]}
8... c5 {[%clk 0:02:50.3]} 9. Be3 {[%clk 0:02:50.6]} 9... Nd7 {[%clk 0:02:44.1]}
10. O-O {[%clk 0:02:46]} 10... Qc7 {[%clk 0:02:44]} 11. Bb5 {[%clk 0:02:37.2]}
11... O-O-O {[%clk 0:02:40.6]} 12. Qh5 {[%clk 0:02:22.6]} 12... g6 {[%clk
0:02:33]} 13. Qg5 {[%clk 0:02:21.2]} 13... Bg7 {[%clk 0:02:30.7]} 14. c3 {[%clk
0:02:08.3]} 14... f6 {[%clk 0:02:31.3]} 15. Bxd7+ {[%clk 0:02:06.7]} 15... Qxd7
{[%clk 0:02:09.8]} 16. exf6 {[%clk 0:02:07.5]} 16... h6 {[%clk 0:02:09.8]} 17.
Qe5 {[%clk 0:02:03.7]} 17... Bf8 {[%clk 0:02:07.6]} 18. dxc5 {[%clk 0:02:04.5]}
18... Qc6 {[%clk 0:01:57.5]} 19. cxb6 {[%clk 0:01:56.3]} 19... axb6 {[%clk
0:01:41.4]} 20. Rfd1 {[%clk 0:01:55.9]} 20... Rd5 {[%clk 0:01:37.6]} 21. Rxd5
{[%clk 0:01:46.3]} 21... exd5 {[%clk 0:01:38.1]} 22. f7 {[%clk 0:01:47.5]} 22...
Bd6 {[%clk 0:01:34]} 23. Qxh8+ {[%clk 0:01:48.2]} 1-0

[Event "*** Titled Tuesday 3|2 Blitz"]
[Site "Chess.com"]
[Date "2017.06.06"]
[Round "5"]
[White "mwpchess"]
[Black "Ilja_Semjonovs"]
[Result "1-0"]
[WhiteElo "2469"]
[BlackElo "2230"]
[TimeControl "180+2"]
[EndTime "14:49:08 PDT"]
[Termination "mwpchess won on time"]

1. e4 {[%clk 0:03:02]} 1... c5 {[%clk 0:03:00.2]} 2. Nf3 {[%clk 0:03:02.2]} 2...
d6 {[%clk 0:02:55.9]} 3. Bb5+ {[%clk 0:03:01.9]} 3... Bd7 {[%clk 0:02:55.8]} 4.
Bxd7+ {[%clk 0:03:02.2]} 4... Nxd7 {[%clk 0:02:56.8]} 5. O-O {[%clk 0:03:01.7]}
5... Ngf6 {[%clk 0:02:58.1]} 6. Qe2 {[%clk 0:03:01.9]} 6... g6 {[%clk
0:02:59.1]} 7. c3 {[%clk 0:03:02.3]} 7... Bg7 {[%clk 0:03:00.2]} 8. d4 {[%clk
0:03:02.9]} 8... cxd4 {[%clk 0:03:00.8]} 9. cxd4 {[%clk 0:03:03.3]} 9... e6
{[%clk 0:03:01.7]} 10. Nc3 {[%clk 0:03:03.4]} 10... O-O {[%clk 0:03:00.7]} 11.
Bf4 {[%clk 0:02:42.8]} 11... e5 {[%clk 0:02:37.4]} 12. dxe5 {[%clk 0:02:37.4]}
12... dxe5 {[%clk 0:02:30.8]} 13. Bg5 {[%clk 0:02:28.2]} 13... Re8 {[%clk
0:02:22.1]} 14. Rfd1 {[%clk 0:02:27.4]} 14... Qa5 {[%clk 0:02:18.2]} 15. Nd5
{[%clk 0:02:03.4]} 15... Nxd5 {[%clk 0:02:13.2]} 16. Rxd5 {[%clk 0:02:03.1]}
16... Qc7 {[%clk 0:02:14.3]} 17. Rc1 {[%clk 0:01:58.1]} 1-0

[Event "*** Titled Tuesday 3|2 Blitz"]
[Site "Chess.com"]
[Date "2017.06.06"]
[Round "5"]
[White "Batica1984"]
[Black "PelinGorki"]
[Result "1-0"]
[WhiteElo "2550"]
[BlackElo "2357"]
[TimeControl "180+2"]
[EndTime "14:49:09 PDT"]
[Termination "Batica1984 won by resignation"]

1. e4 {[%clk 0:03:02]} 1... d6 {[%clk 0:03:02]} 2. d4 {[%clk 0:03:02.4]} 2...
Nf6 {[%clk 0:03:02.7]} 3. Nc3 {[%clk 0:03:03]} 3... c6 {[%clk 0:03:04.2]} 4. f4
{[%clk 0:03:01.8]} 4... Qa5 {[%clk 0:03:04.3]} 5. Bd3 {[%clk 0:03:00.6]} 5... e5
{[%clk 0:03:04.6]} 6. Nf3 {[%clk 0:03:02.1]} 6... exd4 {[%clk 0:03:05.7]} 7.
Nxd4 {[%clk 0:03:02.5]} 7... Qb6 {[%clk 0:03:07.6]} 8. Nf3 {[%clk 0:02:54]} 8...
d5 {[%clk 0:03:06.5]} 9. Qe2 {[%clk 0:02:33.8]} 9... dxe4 {[%clk 0:03:01]} 10.
Nxe4 {[%clk 0:02:34.5]} 10... Nxe4 {[%clk 0:02:59.9]} 11. Qxe4+ {[%clk
0:02:35.4]} 11... Be7 {[%clk 0:02:59.7]} 12. Be3 {[%clk 0:02:33.4]} 12... Qb4+
{[%clk 0:03:01]} 13. Qxb4 {[%clk 0:02:31.1]} 13... Bxb4+ {[%clk 0:03:02.9]} 14.
c3 {[%clk 0:02:32.7]} 14... Be7 {[%clk 0:03:01.8]} 15. O-O-O {[%clk 0:02:33.4]}
15... O-O {[%clk 0:03:01.6]} 16. Rhe1 {[%clk 0:02:33.8]} 16... Bf6 {[%clk
0:02:58.4]} 17. Bc5 {[%clk 0:02:20]} 17... Rd8 {[%clk 0:02:56.6]} 18. Ng5 {[%clk
0:02:09.1]} 18... g6 {[%clk 0:02:46.3]} 19. Be7 {[%clk 0:01:56.2]} 19... Bxe7
{[%clk 0:02:23]} 20. Rxe7 {[%clk 0:01:56.5]} 20... Bg4 {[%clk 0:02:20]} 21. Be2
{[%clk 0:01:55.1]} 21... Rxd1+ {[%clk 0:02:13.9]} 22. Bxd1 {[%clk 0:01:55.7]}
22... Bxd1 {[%clk 0:02:14.1]} 23. Kxd1 {[%clk 0:01:56.6]} 23... Na6 {[%clk
0:02:12.5]} 24. Rxb7 {[%clk 0:01:42.4]} 24... Nc5 {[%clk 0:02:03.7]} 25. Rc7
{[%clk 0:01:43.1]} 25... Nd3 {[%clk 0:02:00.9]} 26. g3 {[%clk 0:01:31.9]} 26...
Nxb2+ {[%clk 0:01:51.4]} 27. Kc2 {[%clk 0:01:32.7]} 27... Nc4 {[%clk 0:01:51.5]}
28. Nxf7 {[%clk 0:01:33.2]} 28... Na5 {[%clk 0:01:48.3]} 29. Ne5 {[%clk
0:01:31.5]} 1-0

[Event "*** Titled Tuesday 3|2 Blitz"]
[Site "Chess.com"]
[Date "2017.06.06"]
[Round "5"]
[White "SabinaFoisor"]
[Black "bugbug01052018"]
[Result "1-0"]
[WhiteElo "2250"]
[BlackElo "1931"]
[TimeControl "180+2"]
[EndTime "14:49:49 PDT"]
[Termination "SabinaFoisor won by resignation"]

1. d4 {[%clk 0:03:00.7]} 1... Nf6 {[%clk 0:03:00]} 2. c4 {[%clk 0:03:01.7]} 2...
g6 {[%clk 0:03:01.6]} 3. Nf3 {[%clk 0:03:01.9]} 3... Bg7 {[%clk 0:03:02.5]} 4.
Nc3 {[%clk 0:03:03.5]} 4... d6 {[%clk 0:03:03.4]} 5. Bg5 {[%clk 0:03:05]} 5...
h6 {[%clk 0:03:03.5]} 6. Bh4 {[%clk 0:03:05.6]} 6... g5 {[%clk 0:03:04.2]} 7.
Bg3 {[%clk 0:03:06.6]} 7... O-O {[%clk 0:03:05.7]} 8. e3 {[%clk 0:03:07.6]} 8...
a5 {[%clk 0:03:03.7]} 9. Be2 {[%clk 0:03:08.3]} 9... Na6 {[%clk 0:03:04.1]} 10.
Qd2 {[%clk 0:03:06.6]} 10... Bg4 {[%clk 0:02:50.9]} 11. h3 {[%clk 0:03:05.9]}
11... Bh5 {[%clk 0:02:51.8]} 12. O-O {[%clk 0:03:05.4]} 12... Bg6 {[%clk
0:02:51.7]} 13. Bd3 {[%clk 0:03:05.1]} 13... Bxd3 {[%clk 0:02:48.1]} 14. Qxd3
{[%clk 0:03:07]} 14... Nb4 {[%clk 0:02:49.5]} 15. Qe2 {[%clk 0:03:06.8]} 15...
Nh5 {[%clk 0:02:49.8]} 16. Bh2 {[%clk 0:03:06.3]} 16... f5 {[%clk 0:02:46.2]}
17. a3 {[%clk 0:03:05.9]} 17... Nc6 {[%clk 0:02:42.7]} 18. Nxg5 {[%clk
0:03:04.6]} 18... hxg5 {[%clk 0:02:36.2]} 19. Qxh5 {[%clk 0:03:04.8]} 19... e5
{[%clk 0:02:37.4]} 20. dxe5 {[%clk 0:02:59]} 20... Nxe5 {[%clk 0:02:37.4]} 21.
Qe2 {[%clk 0:02:48.6]} 21... f4 {[%clk 0:02:35.3]} 22. exf4 {[%clk 0:02:48]}
22... gxf4 {[%clk 0:02:35.7]} 23. f3 {[%clk 0:02:47.9]} 23... Qg5 {[%clk
0:02:35.3]} 24. Kh1 {[%clk 0:02:48.4]} 24... Rae8 {[%clk 0:02:36]} 25. Ne4
{[%clk 0:02:49.3]} 25... Qg6 {[%clk 0:02:31.9]} 26. Rad1 {[%clk 0:02:46.1]}
26... Qf7 {[%clk 0:02:24.6]} 27. Rc1 {[%clk 0:02:38.3]} 27... Qg6 {[%clk
0:02:19.8]} 28. b4 {[%clk 0:02:37.8]} 28... axb4 {[%clk 0:02:20.4]} 29. axb4
{[%clk 0:02:39.7]} 29... Nc6 {[%clk 0:02:20.3]} 30. Qd2 {[%clk 0:02:37.5]} 30...
Ne5 {[%clk 0:02:17.3]} 31. Bxf4 {[%clk 0:02:33.6]} 31... Nxc4 {[%clk 0:02:11.6]}
32. Rxc4 {[%clk 0:02:32.3]} 32... Qf7 {[%clk 0:02:09.3]} 33. Rxc7 {[%clk
0:02:09.8]} 33... Qxc7 {[%clk 0:02:06.1]} 34. Bxd6 {[%clk 0:02:10.5]} 34... Qc4
{[%clk 0:02:04.4]} 35. Rc1 {[%clk 0:02:04.4]} 35... Qe6 {[%clk 0:01:53.5]} 36.
Bxf8 {[%clk 0:02:03.8]} 36... Rxf8 {[%clk 0:01:54.1]} 37. Qd3 {[%clk 0:01:49.1]}
37... Kh8 {[%clk 0:01:50]} 38. Qc4 {[%clk 0:01:48]} 38... Qh6 {[%clk 0:01:49.2]}
39. Qc7 {[%clk 0:01:42.4]} 39... Rxf3 {[%clk 0:01:41.4]} 40. gxf3 {[%clk
0:01:38.2]} 40... Qxh3+ {[%clk 0:01:40.8]} 41. Qh2 {[%clk 0:01:38.3]} 1-0

[Event "*** Titled Tuesday 3|2 Blitz"]
[Site "Chess.com"]
[Date "2017.06.06"]
[Round "5"]
[White "Frolik67"]
[Black "silverback96"]
[Result "1-0"]
[WhiteElo "2308"]
[BlackElo "2118"]
[TimeControl "180+2"]
[EndTime "14:49:56 PDT"]
[Termination "Frolik67 won by resignation"]

1. e4 {[%clk 0:03:02]} 1... e6 {[%clk 0:03:01.2]} 2. d3 {[%clk 0:03:02.7]} 2...
d5 {[%clk 0:03:02.8]} 3. Nd2 {[%clk 0:03:04.3]} 3... Nc6 {[%clk 0:03:04.4]} 4.
Ngf3 {[%clk 0:03:05.5]} 4... Nf6 {[%clk 0:03:06.1]} 5. g3 {[%clk 0:03:06.8]}
5... dxe4 {[%clk 0:03:07.6]} 6. dxe4 {[%clk 0:03:08.6]} 6... Bc5 {[%clk
0:03:09.2]} 7. Bg2 {[%clk 0:03:09.7]} 7... O-O {[%clk 0:03:10.9]} 8. O-O {[%clk
0:03:10.7]} 8... e5 {[%clk 0:03:12.6]} 9. Qe2 {[%clk 0:03:10.9]} 9... a5 {[%clk
0:03:14.2]} 10. Rd1 {[%clk 0:03:11.1]} 10... b6 {[%clk 0:03:15]} 11. Nc4 {[%clk
0:03:12.1]} 11... Qe7 {[%clk 0:03:14.6]} 12. Ne3 {[%clk 0:03:10.7]} 12... Ba6
{[%clk 0:03:15.3]} 13. c4 {[%clk 0:03:11.1]} 13... Nd4 {[%clk 0:02:54]} 14. Nxd4
{[%clk 0:03:09.6]} 14... Bxd4 {[%clk 0:02:55.9]} 15. Nf5 {[%clk 0:03:09]} 15...
Qc5 {[%clk 0:02:56.9]} 16. Bf1 {[%clk 0:02:50.2]} 16... Rfd8 {[%clk 0:02:26]}
17. Bg5 {[%clk 0:02:46.7]} 17... Kh8 {[%clk 0:00:32.3]} 18. Rac1 {[%clk
0:02:36.6]} 18... Rd7 {[%clk 0:00:30.6]} 19. Bxf6 {[%clk 0:02:36]} 19... gxf6
{[%clk 0:00:31.4]} 20. Bh3 {[%clk 0:02:32.5]} 20... Rad8 {[%clk 0:00:25.1]} 21.
Kg2 {[%clk 0:02:30.3]} 21... Bb7 {[%clk 0:00:15.9]} 22. Qg4 {[%clk 0:02:27.9]}
22... Rg8 {[%clk 0:00:15.2]} 23. Qh4 {[%clk 0:02:28.4]} 23... Qc6 {[%clk
0:00:14.4]} 24. f3 {[%clk 0:02:26.5]} 24... Rg5 {[%clk 0:00:13.8]} 25. Nxd4
{[%clk 0:02:18.4]} 25... Rxd4 {[%clk 0:00:14.5]} 26. Rxd4 {[%clk 0:02:19.2]}
26... exd4 {[%clk 0:00:16.4]} 27. Qf4 {[%clk 0:02:20]} 27... Rc5 {[%clk
0:00:10.2]} 28. b3 {[%clk 0:02:16.5]} 28... b5 {[%clk 0:00:11.2]} 29. Qh6 {[%clk
0:02:12.5]} 29... Qd6 {[%clk 0:00:09]} 30. Bf5 {[%clk 0:02:13.3]} 30... Kg8
{[%clk 0:00:09.2]} 31. Bxh7+ {[%clk 0:02:13.4]} 31... Kh8 {[%clk 0:00:09.3]} 32.
Bg6+ {[%clk 0:02:14.7]} 1-0